bitfinex/quotes_SOLUSD_20260302
["timestamp","ask_amount","ask_price","bid_price","bid_amount"]
[1772479273757,28.6059138,87.395,87.363,3.14672314]
[1772479274358,45.75895427,87.415,87.362,11.44662439]
[1772479274359,11.43942253,87.417,87.371,3.14672314]
[1772479274563,11.43942253,87.417,87.391,3.20598178]
[1772479274978,11.43654433,87.439,87.392,3.20598178]
[1772479275284,11.43599516,87.444,87.411,3.20598178]
[1772479276385,3.37607704,87.443,87.411,3.20598178]
[1772479276588,3.37607704,87.443,87.403,3.20598178]
[1772479277173,3.37607704,87.441,87.405,3.20598178]
[1772479277583,3.37607704,87.441,87.411,3.33486356]
[1772479279088,11.43615196,87.442,87.411,3.33486356]
[1772479279280,3.15323044,87.459,87.422,3.33486356]
[1772479279482,3.15323044,87.468,87.431,3.33486356]
[1772479279668,11.43262184,87.469,87.431,3.33486356]
[1772479279866,3.15323044,87.468,87.431,3.33486356]
[1772479280279,11.43262184,87.469,87.431,3.33486356]
[1772479281396,11.43262184,87.469,87.433,3.33486356]
[1772479282692,3.15323044,87.449,87.415,3.33486356]
[1772479283871,3.15323044,87.447,87.416,3.33486356]
[1772479284071,3.15323044,87.447,87.411,14.77495366]
[1772479284292,10.77392418,87.44,87.411,14.77495366]
[1772479284495,3.15323044,87.447,87.412,3.33486356]
[1772479284841,3.15323044,87.439,87.411,11.4400901]
[1772479285808,11.43667512,87.438,87.407,3.33486356]
[1772479286174,11.43667512,87.438,87.41,10.77392418]
[1772479286503,45.72607529,87.478,87.406,11.44086218]
[1772479286504,10.77392418,87.48,87.431,3.33486356]
[1772479286678,28.57844412,87.479,87.441,3.33486356]
[1772479287390,11.43243078,87.471,87.441,3.33486356]
[1772479287586,11.43243078,87.471,87.411,1.14402077]
[1772479287587,11.43243078,87.471,87.451,3.33486356]
[1772479288307,10.77392418,87.49,87.453,3.33486356]
[1772479288308,11.43170094,87.477,87.453,3.33486356]
[1772479289197,18.7632982,87.482,87.453,3.33486356]
[1772479290880,47.34060553,87.482,87.453,3.33486356]
[1772479291099,3.15323044,87.479,87.444,3.33486356]
[1772479291789,47.34060553,87.482,87.444,3.33486356]
[1772479291790,47.34060553,87.482,87.445,3.33486356]
[1772479292185,18.7632982,87.482,87.451,3.33486356]
[1772479292778,18.7632982,87.482,87.453,3.33486356]
[1772479294502,3.15323044,87.481,87.453,3.33486356]
[1772479294873,3.15323044,87.479,87.441,3.33486356]
[1772479295600,3.15323044,87.479,87.442,3.33486356]
[1772479295795,40.00828189,87.482,87.442,3.33486356]
[1772479296097,40.00828189,87.482,87.441,40.02698962]
[1772479296098,11.43097456,87.482,87.451,3.33486356]
[1772479296320,41.18,87.492,87.461,3.33486356]
[1772479296499,41.18,87.492,87.471,3.33486356]
[1772479296708,3.15323044,87.519,87.48,10.77392418]
[1772479296876,14.57932077,87.519,87.491,3.33486356]
[1772479297078,3.15323044,87.499,87.453,1.14347135]
[1772479297324,10.77392418,87.47,87.437,3.33486356]
[1772479297880,3.15323044,87.459,87.411,3.33486356]
[1772479298094,3.15323044,87.449,87.412,3.33486356]
[1772479298396,11.4353673,87.448,87.414,3.33486356]
[1772479299794,3.15323044,87.447,87.414,3.33486356]
[1772479301504,11.43419051,87.457,87.416,3.33486356]
[1772479301801,1.14347135,87.456,87.416,3.33486356]
[1772479302582,11.434452,87.455,87.421,3.33486356]
[1772479302782,28.58131937,87.47,87.431,3.33486356]
[1772479302783,1.14347135,87.469,87.431,3.33486356]
[1772479303204,12.57517833,87.476,87.431,3.33486356]
[1772479304095,10.76601,87.47,87.431,3.33486356]
[1772479304295,1.14347135,87.469,87.431,3.33486356]
[1772479304495,3.15323044,87.468,87.431,3.33486356]
[1772479304694,1.14347135,87.467,87.431,3.33486356]
[1772479305098,1.14347135,87.467,87.433,3.33486356]
[1772479305300,11.43301397,87.466,87.433,3.33486356]
[1772479305612,1.14347135,87.465,87.433,3.33486356]
[1772479306594,10.76601,87.45,87.422,3.33486356]
[1772479307516,3.20190453,87.452,87.423,11.43863742]
[1772479307811,3.20190453,87.439,87.401,3.48573758]
[1772479307994,3.20190453,87.439,87.402,3.48573758]
[1772479308808,3.20190453,87.437,87.403,14.92699245]
[1772479309111,10.76601,87.43,87.403,14.92699245]
[1772479309414,3.20190453,87.437,87.404,3.48573758]
[1772479310515,11.43667512,87.438,87.404,3.48573758]
[1772479311095,10.76601,87.44,87.406,3.48573758]
[1772479311299,11.43654433,87.439,87.406,3.48573758]
[1772479311809,12.58001568,87.439,87.406,3.48573758]
[1772479312512,12.58001568,87.439,87.392,3.48573758]
[1772479312513,3.20190453,87.429,87.392,3.48573758]
[1772479312715,41.17137651,87.439,87.384,3.48573758]
[1772479312716,3.20190453,87.419,87.384,3.48573758]
[1772479314624,1.14347135,87.449,87.411,3.48573758]
[1772479314997,3.20190453,87.448,87.411,3.48573758]
[1772479315197,3.20190453,87.446,87.411,3.48573758]
[1772479315398,1.14347135,87.445,87.411,3.48573758]
[1772479315706,10.76601,87.45,87.411,3.48573758]
[1772479315707,1.14347135,87.449,87.411,3.48573758]
[1772479317221,11.4353673,87.448,87.413,3.48573758]
[1772479317727,11.4353673,87.448,87.412,11.44007687]
[1772479317728,3.20190453,87.473,87.432,3.48573758]
[1772479317899,3.20190453,87.473,87.441,3.48573758]
[1772479318099,9.4710957,87.512,87.441,3.48573758]
[1772479318100,11.43153996,87.478,87.441,3.48573758]
[1772479319308,11.43153996,87.478,87.453,3.48573758]
[1772479319715,3.20190453,87.482,87.453,3.48573758]
[1772479319716,11.43098532,87.482,87.453,3.48573758]
[1772479321223,10.76601,87.48,87.445,3.48573758]
[1772479321426,3.20190453,87.469,87.434,3.48573758]
[1772479322131,28.57572966,87.487,87.441,3.48573758]
[1772479322340,3.20190453,87.488,87.451,3.48573758]
[1772479322708,11.43000834,87.489,87.461,3.48573758]
[1772479323107,3.20190453,87.496,87.461,3.48573758]
[1772479323332,3.20190453,87.496,87.463,3.48573758]
[1772479323499,11.42922452,87.495,87.47,10.76601]
[1772479323705,3.20190453,87.496,87.47,14.25174758]
[1772479324207,11.42845066,87.501,87.471,3.48573758]
[1772479324600,3.20190453,87.5,87.471,3.48573758]
[1772479324828,3.20190453,87.499,87.452,3.48573758]
[1772479325011,3.20190453,87.499,87.454,3.48573758]
[1772479326128,3.20190453,87.497,87.455,11.434452]
[1772479326426,3.20190453,87.479,87.447,11.43539281]
[1772479328628,3.20190453,87.477,87.442,11.43603282]
[1772479328934,3.20190453,87.477,87.44,14.25174758]
[1772479329432,3.20190453,87.477,87.441,3.48573758]
[1772479329628,3.20190453,87.477,87.442,3.48573758]
[1772479329934,3.20190453,87.477,87.437,11.43667656]
[1772479330811,3.20190453,87.469,87.431,11.43759078]
[1772479331230,3.20190453,87.469,87.431,14.92332836]
[1772479331822,3.20190453,87.459,87.42,10.76601]
[1772479332023,3.20190453,87.449,87.415,11.43968426]
[1772479332438,3.20190453,87.469,87.441,3.48573758]
[1772479332612,3.20190453,87.469,87.45,10.76601]
[1772479332928,11.43275254,87.468,87.45,10.76601]
[1772479333115,11.43275254,87.468,87.443,3.48573758]
[1772479333528,3.20190453,87.475,87.45,10.76601]
[1772479333731,11.43196835,87.474,87.45,10.76601]
[1772479334512,11.43196835,87.474,87.443,3.48573758]
[1772479334728,3.33467036,87.473,87.443,3.48573758]
[1772479335434,11.43222974,87.472,87.443,3.48573758]
[1772479335617,3.33467036,87.469,87.43,10.76601]
[1772479336827,10.76601,87.47,87.43,10.76601]
[1772479336828,3.33467036,87.467,87.43,10.76601]
[1772479337816,3.33467036,87.467,87.43,14.13815528]
[1772479338135,3.33467036,87.467,87.43,3.37214528]
[1772479338335,3.33467036,87.467,87.431,11.43759078]
[1772479339437,3.59082115,87.465,87.431,11.43759078]
[1772479339638,11.43301397,87.466,87.44,10.76601]
[1772479340018,15.02383512,87.466,87.439,3.37214528]
[1772479340218,3.59082115,87.465,87.422,3.37214528]
[1772479340419,11.43301397,87.466,87.441,3.37214528]
[1772479341324,3.59082115,87.463,87.424,3.37214528]
[1772479343641,3.59082115,87.461,87.426,3.37214528]
[1772479344521,11.43353685,87.462,87.431,3.37214528]
[1772479345638,14.35683115,87.47,87.431,3.37214528]
[1772479345639,3.59082115,87.468,87.432,3.37214528]
[1772479347352,3.59082115,87.468,87.431,11.43757213]
[1772479347353,11.4298777,87.49,87.461,3.37214528]
[1772479347543,9.54166464,87.507,87.48,10.76601]
[1772479347734,11.42772642,87.507,87.481,3.37214528]
[1772479348448,15.01854757,87.507,87.481,3.37214528]
[1772479349246,3.59082115,87.506,87.481,3.37214528]
[1772479349745,39.99771441,87.505,87.481,3.37214528]
[1772479349946,3.59082115,87.504,87.473,3.37214528]
[1772479351347,3.59082115,87.499,87.45,10.76601]
[1772479351728,3.59082115,87.499,87.46,10.76601]
[1772479353246,3.59082115,87.469,87.43,10.76601]
[1772479353432,3.59082115,87.469,87.432,3.37214528]
[1772479354252,3.59082115,87.459,87.42,14.13815528]
[1772479354427,3.59082115,87.459,87.421,3.37214528]
[1772479355328,3.59082115,87.457,87.423,3.37214528]
[1772479356542,11.43405977,87.458,87.423,3.37214528]
[1772479356733,28.58077343,87.472,87.431,3.37214528]
[1772479356942,15.02344299,87.469,87.431,3.37214528]
[1772479357626,15.02344299,87.469,87.433,3.37214528]
[1772479357827,3.59082115,87.468,87.433,3.37214528]
[1772479358044,3.59082115,87.468,87.401,1.14415166]
[1772479358045,3.59082115,87.468,87.424,3.37214528]
[1772479358249,3.59082115,87.459,87.42,11.43894484]
[1772479358650,3.59082115,87.459,87.42,14.81109012]
[1772479358851,3.59082115,87.459,87.42,3.37214528]
[1772479359035,3.59082115,87.449,87.42,3.37214528]
[1772479359552,3.59082115,87.449,87.416,11.43953322]
[1772479359758,3.59082115,87.447,87.416,11.43953322]
[1772479360551,3.59082115,87.447,87.417,3.37214528]
[1772479360859,11.43562884,87.446,87.42,10.76601]
[1772479361067,11.43562884,87.446,87.421,3.37214528]
[1772479361434,3.59082115,87.445,87.411,3.37214528]
[1772479362248,3.59082115,87.445,87.411,14.81235303]
[1772479363174,15.02671154,87.444,87.414,3.37214528]
[1772479363455,3.59082115,87.443,87.414,3.37214528]
[1772479364934,5.45235291,87.449,87.413,40.039811]
[1772479365140,12.72816061,87.516,87.413,40.039811]
[1772479365141,3.67724202,87.479,87.441,40.02698962]
[1772479365354,3.67724202,87.479,87.45,10.76716403]
[1772479365953,3.67724202,87.477,87.45,10.76716403]
[1772479366445,3.67724202,87.477,87.45,4.01596745]
[1772479367268,28.57531912,87.489,87.45,4.01596745]
[1772479367269,3.67724202,87.475,87.45,4.01596745]
[1772479367562,3.67724202,87.475,87.451,11.43497501]
[1772479371557,57.13729802,87.509,87.451,11.43497501]
[1772479371558,3.67724202,87.483,87.46,10.75720649]
[1772479371872,3.67724202,87.483,87.451,40.02241254]
[1772479372358,3.67724202,87.483,87.46,10.75720649]
[1772479373259,3.67724202,87.483,87.451,40.02241254]
[1772479373260,3.67724202,87.491,87.47,10.75720649]
[1772479373459,28.56901153,87.508,87.46,10.75720649]
[1772479373460,3.67724202,87.489,87.46,10.75720649]
[1772479373850,3.67724202,87.489,87.451,41.16591004]
[1772479374149,11.4298777,87.49,87.45,10.75720649]
[1772479374150,3.67724202,87.477,87.45,10.75720649]
[1772479374355,1.1434975,87.488,87.45,10.75720649]
[1772479374356,3.67724202,87.487,87.45,10.75720649]
[1772479374649,3.67724202,87.485,87.45,10.75720649]
[1772479375153,3.67724202,87.479,87.44,10.75720649]
[1772479375374,3.67724202,87.477,87.44,10.75720649]
[1772479375552,3.67724202,87.473,87.441,11.43628275]
[1772479375948,3.67724202,87.473,87.44,10.75720649]
[1772479375949,10.75720649,87.46,87.422,11.43876827]
[1772479376276,40.01188924,87.474,87.422,11.43876827]
[1772479376277,3.67724202,87.459,87.422,11.43876827]
[1772479376455,3.67724202,87.459,87.43,10.75720649]
[1772479376774,3.67724202,87.459,87.422,40.03568895]
[1772479377064,1.1434975,87.469,87.422,40.03568895]
[1772479377065,1.1434975,87.469,87.441,3.66330991]
[1772479377264,1.1434975,87.473,87.441,3.66330991]
[1772479377474,1.1434975,87.473,87.44,10.75720649]
[1772479377650,11.43222974,87.472,87.437,3.69383402]
[1772479377971,1.1434975,87.471,87.434,15.10050825]
[1772479378157,10.75720649,87.47,87.434,3.66330991]
[1772479378470,1.1434975,87.469,87.434,3.66330991]
[1772479378975,3.43932948,87.468,87.434,3.66330991]
[1772479379276,3.43932948,87.466,87.434,3.66330991]
[1772479379460,3.43932948,87.464,87.435,11.43706753]
[1772479380873,3.43932948,87.464,87.43,10.75720649]
[1772479381174,3.43932948,87.449,87.414,11.43971006]
[1772479381375,40.01600639,87.465,87.41,14.45104051]
[1772479381376,3.43932948,87.458,87.431,11.43759078]
[1772479381558,3.43932948,87.456,87.431,11.43759078]
[1772479382775,11.43366358,87.462,87.432,3.66330991]
[1772479383465,11.43366358,87.462,87.433,15.10063906]
[1772479383870,11.43366358,87.462,87.434,3.66330991]
[1772479384072,11.43366358,87.462,87.441,3.66330991]
[1772479384452,11.43366358,87.462,87.44,10.75720649]
[1772479384453,14.86424493,87.528,87.457,3.66330991]
[1772479384656,3.43932948,87.519,87.481,3.66330991]
[1772479385195,3.43932948,87.509,87.462,3.66330991]
[1772479385366,3.43932948,87.509,87.48,10.75720649]
[1772479385569,11.42752662,87.508,87.481,11.4310536]
[1772479385973,3.43932948,87.507,87.48,10.75720649]
[1772479386179,3.43932948,87.507,87.481,11.4310536]
[1772479388182,11.4277878,87.506,87.481,11.4310536]
[1772479388370,14.86711728,87.506,87.481,11.4310536]
[1772479388564,0.1,87.53,87.491,3.66330991]
[1772479388565,3.43932948,87.523,87.491,3.66330991]
[1772479388979,3.43932948,87.523,87.49,10.75720649]
[1772479390276,3.43932948,87.521,87.491,11.42974705]
[1772479390670,3.43932948,87.519,87.486,11.43027808]
[1772479391288,0.1,87.53,87.501,3.66330991]
[1772479391480,0.1,87.53,87.51,10.75720649]
[1772479391787,11.42491545,87.528,87.501,3.66330991]
[1772479392367,0.1,87.53,87.502,15.09162012]
[1772479392582,0.1,87.53,87.51,10.75720649]
[1772479392785,0.1,87.53,87.502,39.99908573]
[1772479392786,0.1,87.54,87.521,3.66330991]
[1772479394282,3.43932948,87.538,87.511,11.42713487]
[1772479394684,0.1,87.54,87.521,3.35828917]
[1772479394875,11.42022685,87.564,87.531,3.35828917]
[1772479395184,3.35898662,87.567,87.54,10.75720649]
[1772479395384,11.42008821,87.565,87.54,10.75720649]
[1772479395584,3.45898662,87.56,87.53,10.75720649]
[1772479395774,3.35898662,87.558,87.53,14.11549566]
[1772479396913,3.35898662,87.558,87.514,3.69383402]
[1772479396914,0.1,87.56,87.541,3.35828917]
[1772479398387,0.1,87.57,87.541,3.35828917]
[1772479398586,11.41956628,87.569,87.541,3.35828917]
[1772479398797,0.1,87.57,87.551,3.57770482]
[1772479399124,45.65832557,87.608,87.542,11.42308834]
[1772479399125,11.41565542,87.599,87.56,10.75720649]
[1772479399277,11.41565542,87.599,87.542,11.42308834]
[1772479399278,3.69097213,87.598,87.57,10.75720649]
[1772479399602,3.69097213,87.618,87.59,10.75720649]
[1772479399780,3.69097213,87.618,87.58,10.75720649]
[1772479399983,0.1,87.62,87.561,0.28432314]
[1772479400209,0.1,87.62,87.6,10.75720649]
[1772479400495,1e-08,87.648,87.611,0.28432314]
[1772479400694,3.69097213,87.671,87.64,10.75720649]
[1772479401005,3.69097213,87.656,87.61,10.75720649]
[1772479401185,3.69097213,87.639,87.581,0.28432314]
[1772479401383,3.69097213,87.629,87.59,10.75720649]
[1772479401585,3.69097213,87.629,87.581,28.54471871]
[1772479402111,3.69097213,87.629,87.6,10.75720649]
[1772479402402,3.69097213,87.629,87.59,10.75720649]
[1772479402593,3.69097213,87.629,87.581,28.54471871]
[1772479402800,3.69097213,87.629,87.59,10.75720649]
[1772479403309,3.69097213,87.639,87.6,10.75720649]
[1772479403476,3.69097213,87.629,87.591,11.41669806]
[1772479404283,3.69097213,87.642,87.6,10.75720649]
[1772479404684,3.69097213,87.639,87.6,10.75720649]
[1772479405399,3.69097213,87.637,87.61,10.75720649]
[1772479405595,39.27999805,87.65,87.601,11.4153948]
[1772479405596,3.69097213,87.644,87.601,39.9538818]
[1772479405794,3.69097213,87.644,87.62,10.75720649]
[1772479405981,3.69097213,87.644,87.61,10.75720649]
[1772479406702,3.69097213,87.619,87.569,11.41956628]
[1772479407009,3.69097213,87.619,87.57,10.75720649]
[1772479407216,10.75720649,87.62,87.58,10.75720649]
[1772479407217,3.69097213,87.617,87.58,10.75720649]
[1772479407507,3.69097213,87.629,87.6,10.75720649]
[1772479407697,15.10271938,87.629,87.6,10.75720649]
[1772479407894,3.69097213,87.628,87.6,10.75720649]
[1772479408097,3.69097213,87.628,87.59,10.75720649]
[1772479408500,3.69097213,87.628,87.582,0.02949069]
[1772479409301,3.69097213,87.626,87.591,11.41669806]
[1772479409509,3.69097213,87.626,87.6,10.75720649]
[1772479409702,3.69097213,87.626,87.591,39.99298441]
[1772479409703,3.69097213,87.626,87.591,11.41669806]
[1772479410402,3.69097213,87.609,87.56,10.75720649]
[1772479410605,3.69097213,87.599,87.56,10.75720649]
[1772479411307,3.69097213,87.599,87.571,11.41930547]
[1772479411505,10.75720649,87.62,87.571,11.41930547]
[1772479411506,3.69097213,87.619,87.571,11.41930547]
[1772479411809,3.69097213,87.619,87.58,10.75720649]
[1772479412714,3.69097213,87.618,87.57,10.80655382]
[1772479413288,3.69097213,87.599,87.56,10.75720649]
[1772479415103,3.69097213,87.597,87.561,11.42060963]
[1772479415704,57.06303664,87.623,87.561,11.42060963]
[1772479415705,3.69097213,87.635,87.591,0.06364911]
[1772479416017,3.69097213,87.635,87.62,10.75720649]
[1772479416315,11.40810203,87.657,87.6,0.06364911]
[1772479416316,11.40810203,87.657,87.63,10.75720649]
[1772479416713,11.40810203,87.657,87.61,10.75720649]
[1772479417416,39.92835711,87.657,87.611,11.41409183]
[1772479417818,39.92835711,87.657,87.596,0.44294026]
[1772479417819,10.75720649,87.63,87.593,11.41638577]
[1772479418109,3.65947794,87.639,87.6,10.75720649]
[1772479418313,3.65947794,87.639,87.61,10.75720649]
[1772479418714,3.65947794,87.649,87.62,10.75720649]
[1772479419094,3.65947794,87.649,87.615,0.4520967]
[1772479419294,15.06875139,87.648,87.611,11.41409183]
[1772479419502,10.75720649,87.68,87.64,10.75720649]
[1772479419695,39.91469658,87.687,87.62,11.21380268]
[1772479419696,3.65947794,87.669,87.62,11.21380268]
[1772479419895,3.65947794,87.659,87.612,0.45659619]
[1772479420113,3.65947794,87.659,87.611,11.41409183]
[1772479420411,3.65947794,87.649,87.611,11.41409183]
[1772479421022,3.65947794,87.639,87.593,11.41643738]
[1772479421402,3.65947794,87.637,87.6,10.75720649]
[1772479423418,3.65947794,87.635,87.601,11.4153948]
[1772479425511,3.65947794,87.633,87.596,11.41603]
[1772479426423,3.65947794,87.633,87.6,10.71965771]
[1772479426611,3.65947794,87.633,87.61,10.71965771]
[1772479427456,3.65947794,87.633,87.601,11.4153948]
[1772479427626,8.51860971,87.678,87.574,11.41891428]
[1772479427627,3.54085964,87.619,87.574,11.41891428]
[1772479427829,3.54085964,87.619,87.58,10.71965771]
[1772479429229,3.54085964,87.619,87.574,39.9662]
[1772479429230,3.54085964,87.619,87.59,10.71965771]
[1772479429522,3.54085964,87.619,87.574,39.9662]
[1772479429523,3.54085964,87.617,87.581,11.41800162]
[1772479429920,3.54085964,87.617,87.561,1.14206096]
[1772479429921,3.54085964,87.617,87.577,11.41850482]
[1772479430228,3.54085964,87.609,87.57,22.13899323]
[1772479431313,3.54085964,87.609,87.58,10.71965771]
[1772479431720,3.54085964,87.607,87.581,11.41800162]
[1772479432701,3.54085964,87.607,87.57,4.00414113]
[1772479432911,3.54085964,87.599,87.56,4.00414113]
[1772479433314,3.54085964,87.599,87.555,11.42139226]
[1772479433522,4.00414113,87.59,87.555,11.42139226]
[1772479433721,3.54085964,87.587,87.545,39.97917586]
[1772479433913,3.54085964,87.587,87.55,4.00414113]
[1772479434627,3.54085964,87.587,87.55,10.73223027]
[1772479435225,3.54085964,87.585,87.551,11.42191408]
[1772479436207,3.54085964,87.583,87.551,11.42191408]
[1772479437512,8.51860971,87.628,87.512,0.53658164]
[1772479437513,10.73223027,87.56,87.512,0.53658164]
[1772479437713,3.54085964,87.568,87.494,45.71698182]
[1772479437714,3.54085964,87.568,87.53,11.26881191]
[1772479438325,10.73223027,87.57,87.51,3.69383402]
[1772479438326,3.54085964,87.566,87.531,11.42452388]
[1772479439414,3.54085964,87.559,87.52,10.73223027]
[1772479440222,3.54085964,87.559,87.521,11.42582922]
[1772479440430,3.54085964,87.549,87.501,11.42844081]
[1772479440731,3.54085964,87.549,87.479,9.43601064]
[1772479440732,3.54085964,87.529,87.49,10.73223027]
[1772479440911,3.54085964,87.529,87.487,11.43026964]
[1772479441113,3.54085964,87.519,87.483,11.43076982]
[1772479442318,3.54085964,87.531,87.5,10.73223027]
[1772479442514,3.54085964,87.531,87.51,10.73223027]
[1772479442735,3.54085964,87.531,87.5,10.73223027]
[1772479444733,14.96551404,87.53,87.501,11.42844081]
[1772479444942,3.54085964,87.529,87.501,11.42844081]
[1772479446337,45.68310272,87.56,87.48,3.69383402]
[1772479446338,10.73223027,87.52,87.48,10.73223027]
[1772479446640,10.73223027,87.52,87.474,11.43196835]
[1772479446641,3.54085964,87.519,87.474,11.43196835]
[1772479446851,3.54085964,87.519,87.46,3.89383402]
[1772479446852,3.54085964,87.489,87.46,0.2]
[1772479447219,3.54085964,87.489,87.46,11.63367252]
[1772479447536,3.54085964,87.469,87.425,1.5813049]
[1772479447841,3.54085964,87.469,87.379,45.77726807]
[1772479447842,3.54085964,87.449,87.402,11.44138578]
[1772479448025,3.54085964,87.449,87.41,12.31688984]
[1772479448221,11.4353673,87.448,87.411,11.44020775]
[1772479448439,3.54085964,87.447,87.411,11.44020775]
[1772479449530,3.54085964,87.447,87.411,40.04072713]
[1772479450241,11.43562884,87.446,87.411,40.04072713]
[1772479450441,3.54085964,87.445,87.411,40.04072713]
[1772479451342,3.54085964,87.445,87.411,11.44020775]
[1772479453729,3.54085964,87.478,87.45,10.73223027]
[1772479453929,3.54085964,87.478,87.431,1.60500134]
[1772479454234,3.54085964,87.478,87.44,10.73223027]
[1772479454750,3.54085964,87.478,87.441,11.43628275]
[1772479454957,3.70777232,87.476,87.441,11.43628275]
[1772479455852,3.70777232,87.459,87.41,10.73223027]
[1772479456448,3.70777232,87.459,87.42,10.73223027]
[1772479456625,3.70777232,87.457,87.421,11.43889912]
[1772479456956,3.70777232,87.449,87.411,11.44020775]
[1772479458150,3.72550408,87.447,87.411,11.44020775]
[1772479460372,3.72550408,87.445,87.411,11.44020775]
[1772479460529,11.43562884,87.446,87.411,11.44020775]
[1772479460530,3.72550408,87.439,87.411,11.44020775]
[1772479460735,3.72550408,87.439,87.401,11.44151668]
[1772479461337,3.72550408,87.449,87.42,10.73223027]
[1772479461936,3.72550408,87.448,87.411,1.65404537]
[1772479462331,3.72550408,87.446,87.412,11.44007687]
[1772479462536,3.72550408,87.439,87.412,11.44007687]
[1772479463065,3.72550408,87.449,87.413,1.66319243]
[1772479463232,3.72550408,87.449,87.42,10.73223027]
[1772479464452,3.72550408,87.456,87.421,41.70383423]
[1772479464657,3.72550408,87.456,87.421,40.03614692]
[1772479465353,3.72550408,87.456,87.421,11.43889912]
[1772479465662,3.72550408,87.449,87.393,40.04897416]
[1772479465969,0.28432314,87.455,87.393,11.44256404]
[1772479465970,3.72550408,87.429,87.393,11.44256404]
[1772479466663,3.72550408,87.427,87.393,11.44256404]
[1772479468864,3.72550408,87.425,87.393,11.44256404]
[1772479469976,3.72550408,87.443,87.41,10.73223027]
[1772479470736,11.43615196,87.442,87.411,11.44020775]
[1772479470955,3.72550408,87.441,87.411,11.44020775]
[1772479471458,3.72550408,87.439,87.403,11.44125487]
[1772479471957,3.72550408,87.429,87.394,11.44243311]
[1772479472146,3.72550408,87.429,87.366,1.14461003]
[1772479472147,3.72550408,87.419,87.382,11.44400448]
[1772479472937,45.736307,87.458,87.4,10.73223027]
[1772479472938,3.72550408,87.429,87.4,10.73223027]
[1772479475065,3.72550408,87.427,87.401,11.44151668]
[1772479475671,3.72550408,87.427,87.41,10.73223027]
[1772479475971,3.72550408,87.44,87.41,10.73223027]
[1772479477857,3.72550408,87.44,87.411,11.44020775]
[1772479478061,3.72550408,87.44,87.411,40.04072713]
[1772479480372,3.72550408,87.44,87.411,41.77369864]
[1772479480579,10.73223027,87.46,87.412,1.93297151]
[1772479480758,11.43392904,87.459,87.42,10.73223027]
[1772479481075,40.01875164,87.459,87.42,10.73223027]
[1772479482251,40.01875164,87.459,87.421,11.43889912]
[1772479482869,3.72550408,87.458,87.421,11.43889912]
[1772479483064,3.72550408,87.454,87.413,11.43986888]
[1772479483250,3.72550408,87.449,87.413,11.43986888]
[1772479484283,3.72550408,87.447,87.401,41.99280091]
[1772479484857,3.72550408,87.447,87.41,10.73223027]
[1772479486465,11.43562884,87.446,87.41,4.01986125]
[1772479486652,3.72550408,87.445,87.403,11.44125487]
[1772479486851,3.72550408,87.439,87.403,11.44125487]
[1772479487770,11.43667512,87.438,87.403,11.44125487]
[1772479487973,3.82005968,87.437,87.403,11.44125487]
[1772479489872,3.82005968,87.435,87.403,11.44125487]
[1772479491170,3.82005968,87.435,87.403,13.41622864]
[1772479491957,3.82005968,87.435,87.403,42.01936583]
[1772479492158,3.82005968,87.435,87.41,10.76938849]
[1772479492473,3.82005968,87.452,87.421,1.97824045]
[1772479492876,3.82005968,87.452,87.413,1.97824045]
[1772479493262,3.82005968,87.45,87.413,1.97824045]
[1772479493464,3.82005968,87.448,87.414,42.02082257]
[1772479493868,3.82005968,87.448,87.41,11.44026438]
[1772479494376,3.82005968,87.448,87.41,22.20965287]
[1772479495277,40.02332787,87.449,87.41,22.20965287]
[1772479495278,3.82005968,87.446,87.41,22.20965287]
[1772479496381,3.82005968,87.439,87.395,28.6055121]
[1772479496566,3.82005968,87.429,87.392,11.44262764]
[1772479496759,40.02424325,87.447,87.359,1.99093626]
[1772479496760,3.82005968,87.409,87.359,1.99093626]
[1772479496962,3.82005968,87.399,87.361,11.44675541]
[1772479497175,3.82005968,87.397,87.361,40.06364395]
[1772479497485,11.44190942,87.398,87.361,11.44675541]
[1772479497486,3.82005968,87.389,87.361,11.44675541]
[1772479498481,3.82005968,87.387,87.361,11.44675541]
[1772479498684,3.82005968,87.387,87.36,0.2]
[1772479498892,3.82005968,87.387,87.34,0.2]
[1772479498893,3.82005968,87.369,87.34,3.89383402]
[1772479499190,11.44321874,87.388,87.342,3.64574174]
[1772479499191,10.76938849,87.38,87.342,3.64574174]
[1772479499382,3.82005968,87.379,87.342,3.64574174]
[1772479500389,3.82005968,87.379,87.341,40.07281803]
[1772479500565,3.82005968,87.349,87.32,0.2]
[1772479500762,14.58944817,87.34,87.32,0.2]
[1772479500987,89.52779679,87.378,87.32,0.2]
[1772479500988,10.76938849,87.36,87.321,3.64574174]
[1772479501163,11.44368991,87.385,87.351,3.64574174]
[1772479501363,11.44309539,87.389,87.36,10.76938849]
[1772479501567,10.76938849,87.38,87.324,1.14516055]
[1772479501881,10.76938849,87.38,87.341,3.64574174]
[1772479501882,3.82005968,87.379,87.341,3.64574174]
[1772479502195,3.82005968,87.379,87.351,3.64574174]
[1772479502385,15.26315507,87.389,87.351,3.64574174]
[1772479502563,15.26315507,87.389,87.353,3.64574174]
[1772479502564,43.87087457,87.389,87.353,3.64574174]
[1772479502769,15.26315507,87.389,87.353,3.64574174]